Workbook

Sheet Procio
A1: TERMODINÁMICA DEL EQUILIBRIO | E1: PUNTOS DE ROCIO
A2: FEDERICO G. SALAZAR
E3: CALCULO DE Procio
A4: N | B4: 3 | C4: Número de componentes | E4: PROCEDIMIENTO:
A5: T | B5: 68 | C5: (ºC) | E5: 1. Seleccione los números de los componentes en la carpeta ANTOINE
A6: P rocio | B6: =1/(B11/H11+B12/H12+IF(B4>=3,B13/H13,0)+IF(B4>=4,B14/H14)+IF(B4>=5,B15/H15)+IF(B4=6,B16/H16)) -> 79.76890695 | C6: (bar) | E6: 2. Ingrese los datos requeridos de las casillas en amarillo
A9: componente | E9: log10 Pvap = A - [B / (T °C + C)] bar | H9: (kPa) | I9: yi P / Psati | J9: yi = zi
A10: No. | B10: zi | C10: Fórmula | D10: componente | E10: A | F10: B | G10: C | H10: Psati | I10: xi | J10: yi
A11: 1 | B11: 0.6 | C11: =LOOKUP(A11,ANTOINE!A22:A93,ANTOINE!C22:C93) -> CCl4 | D11: =LOOKUP(A11,ANTOINE!$A$22:$A$93,ANTOINE!$B$22:$B$93) -> carbon-tetrachloride | E11: =LOOKUP($A11,ANTOINE!$A$22:$A$93,ANTOINE!$D$22:$D$93) -> 6.8941 | F11: =LOOKUP($A11,ANTOINE!$A$22:$A$93,ANTOINE!$E$22:$E$93) -> 1219.58 | G11: =LOOKUP($A11,ANTOINE!$A$22:$A$93,ANTOINE!$F$22:$F$93) -> 227.17 | H11: =+IF($E$11=0,0,POWER(10,$E$11-($F$11/($B$5+$G$11)))) -> 578.5108907 | I11: =+(J11*$B$6)/H11 -> 0.08273196744 | J11: =+B11 -> 0.6
A12: 56 | B12: 0.3 | C12: =LOOKUP(A12,ANTOINE!A22:A93,ANTOINE!C22:C93) -> C2H3CLO | D12: =LOOKUP(A12,ANTOINE!$A$22:$A$93,ANTOINE!$B$22:$B$93) -> acetyl-chloride | E12: =LOOKUP(A12,ANTOINE!$A$22:$A$93,ANTOINE!$D$22:$D$93) -> 6.8407 | F12: =LOOKUP($A12,ANTOINE!$A$22:$A$93,ANTOINE!$E$22:$E$93) -> 1062.86 | G12: =LOOKUP($A12,ANTOINE!$A$22:$A$93,ANTOINE!$F$22:$F$93) -> 217.63 | H12: =+IF($E12=0,0,POWER(10,$E12-($F12/($B$5+$G12)))) -> 1317.019706 | I12: =+(J12*$B$6)/H12 -> 0.01817032196 | J12: 0.3
A13: 34 | B13: 0.1 | C13: =IF(A13>0,LOOKUP(A13,ANTOINE!A23:A94,ANTOINE!C23:C94)," ") -> C2CL6 | D13: =IF(A13>0,LOOKUP(A13,ANTOINE!$A$22:$A$93,ANTOINE!$B$22:$B$93)," ") -> hexachloroethane | E13: =IF(A13>0,LOOKUP(A13,ANTOINE!$A$22:$A$93,ANTOINE!$D$22:$D$93)," ") -> 7.08633 | F13: =IF(A13>0,LOOKUP($A13,ANTOINE!$A$22:$A$93,ANTOINE!$E$22:$E$93)," ") -> 1626.945 | G13: =IF(A13>0,LOOKUP($A13,ANTOINE!$A$22:$A$93,ANTOINE!$F$22:$F$93)," ") -> 197.048 | H13: =+IF(A13=0,0,POWER(10,$E13-($F13/($B$5+$G13)))) -> 8.872106558 | I13: =+IF($B$4>=3,(J13*$B$6)/H13,0) -> 0.8990977106 | J13: 0.1
C14: =IF(A14>0,LOOKUP(A14,ANTOINE!A24:A94,ANTOINE!C24:C94)," ") ->  | D14: =IF(A14>0,LOOKUP(A14,ANTOINE!$A$22:$A$93,ANTOINE!$B$22:$B$93)," ") ->  | E14: =IF(A14>0,LOOKUP(A14,ANTOINE!$A$22:$A$93,ANTOINE!$D$22:$D$93)," ") ->  | F14: =IF(A14>0,LOOKUP($A14,ANTOINE!$A$22:$A$93,ANTOINE!$E$22:$E$93)," ") ->  | G14: =IF(A14>0,LOOKUP($A14,ANTOINE!$A$22:$A$93,ANTOINE!$F$22:$F$93)," ") ->  | H14: =+IF($A14=0,0,POWER(10,$E14-($F14/($B$5+$G14)))) -> 0 | I14: =+IF($B$4>=4,(J14*$B$6)/H14,0) -> 0 | J14: 0
C15: =IF(A15>0,LOOKUP(A15,ANTOINE!A25:A95,ANTOINE!C25:C95)," ") ->  | D15: =IF(A15>0,LOOKUP(A15,ANTOINE!$A$22:$A$93,ANTOINE!$B$22:$B$93)," ") ->  | E15: =IF(A15>0,LOOKUP(A15,ANTOINE!$A$22:$A$93,ANTOINE!$D$22:$D$93)," ") ->  | F15: =IF(A15>0,LOOKUP($A15,ANTOINE!$A$22:$A$93,ANTOINE!$E$22:$E$93)," ") ->  | G15: =IF(A15>0,LOOKUP($A15,ANTOINE!$A$22:$A$93,ANTOINE!$F$22:$F$93)," ") ->  | H15: =+IF($A15=0,0,POWER(10,$E15-($F15/($B$5+$G15)))) -> 0 | I15: =+IF($B$4>=5,(J15*$B$6)/H15,0) -> 0 | J15: 0
C16: =IF(A16>0,LOOKUP(A16,ANTOINE!A26:A95,ANTOINE!C26:C95)," ") ->  | D16: =IF(A16>0,LOOKUP(A16,ANTOINE!$A$22:$A$93,ANTOINE!$B$22:$B$93)," ") ->  | E16: =IF(A16>0,LOOKUP(A16,ANTOINE!$A$22:$A$93,ANTOINE!$D$22:$D$93)," ") ->  | F16: =IF(A16>0,LOOKUP($A16,ANTOINE!$A$22:$A$93,ANTOINE!$E$22:$E$93)," ") ->  | G16: =IF(A16>0,LOOKUP($A16,ANTOINE!$A$22:$A$93,ANTOINE!$F$22:$F$93)," ") ->  | H16: =+IF($A16=0,0,POWER(10,$E16-($F16/($B$5+$G16)))) -> 0 | I16: =+IF($B$4>=6,(J16*$B$6)/H16,0) -> 0 | J16: 0
B17: =SUM(B11:B16) -> 1 | I17: =SUM(I11:I16) -> 1 | J17: =SUM(J11:J16) -> 1
A19: REFERENCIAS BIBLIOGRÁFICAS:
A20: 1 | B20: SMITH, J.M., H.C. VAN NES & M.M. ABBOTT. (2005). Introduction to Chemical Engineering Thermodynamics. Seventh Edition. McGraw Hill. New York.
A21: 2 | B21: POLING, BRUCE; PRAUSNITZ, JOHN; & O`CONNELL, JOHN. (2001). The Properties of Gases and Liquids. Fifth edition. McGraw Hill. New York.

Sheet Trocio
A1: TERMODINÁMICA DEL EQUILIBRIO | E1: PUNTOS DE ROCIO
A2: FEDERICO G. SALAZAR
E3: CALCULO DE Trocio
A4: N | B4: 3 | C4: Número de componentes | E4: PROCEDIMIENTO:
A5: P | B5: 79.8 | C5: (bar) | E5: 1. Seleccione los números de los componentes en la carpeta ANTOINE
A6: T rocio | B6: =+H11 -> 68.00761818 | C6: (ºC) | E6: 2. Ingrese los datos requeridos de las casillas en amarillo
E7: 3. En el menú HERRAMIENTAS seleccione SOLVER
E8: 4. Presione RESOLVER y ACEPTAR
F11: SOLVER | G11: =1/(K15/POWER(10,$E$15-($F$15/($B$6+$G$15)))+K16/POWER(10,$E$16-($F$16/($B$6+$G$16)))+IF(B4>=3,K17/POWER(10,$E$17-($F$17/($B$6+$G$17))),0)+IF(B4>=4,K18/POWER(10,$E$18-($F$18/($B$6+$G$18))),0)+IF(B4>=5,K19/POWER(10,$E$19-($F$19/($B$6+$G$19))),0)+IF(B4=6,K20/POWER(10,$E$20-($F$20/($B$6+$G$20))),0)) -> 79.79999983 | H11: 68.00761818 | I11: =+H15*J15+H16*J16+H17*J17+H18*J18+H19*J19+H20*J20 -> 106.3612223
A13: componente | E13: log10 Pvap = A - [B / (T °C + C)] bar | H13: (ºC) | I13: (bar) | J13: yi P / Psati | K13: yi = zi
A14: No. | B14: zi | C14: Fórmula | D14: componente | E14: A | F14: B | G14: C | H14: Tsati | I14: Psati | J14: xi | K14: yi
A15: 1 | B15: 0.6 | C15: =LOOKUP(A15,ANTOINE!A22:A93,ANTOINE!C22:C93) -> CCl4 | D15: =LOOKUP(A15,ANTOINE!$A$22:$A$93,ANTOINE!$B$22:$B$93) -> carbon-tetrachloride | E15: =LOOKUP($A15,ANTOINE!$A$22:$A$93,ANTOINE!$D$22:$D$93) -> 6.8941 | F15: =LOOKUP($A15,ANTOINE!$A$22:$A$93,ANTOINE!$E$22:$E$93) -> 1219.58 | G15: =LOOKUP($A15,ANTOINE!$A$22:$A$93,ANTOINE!$F$22:$F$93) -> 227.17 | H15: =+F15/(E15-LOG10($B$5))-G15 -> 17.13213865 | I15: =+IF(A15=0,0,POWER(10,$E15-($F$15/($B$6+$G$15)))) -> 578.6529555 | J15: =+K15*$B$5/I15 -> 0.08274389605 | K15: =+B15 -> 0.6
A16: 56 | B16: 0.3 | C16: =LOOKUP(A16,ANTOINE!A22:A93,ANTOINE!C22:C93) -> C2H3CLO | D16: =LOOKUP(A16,ANTOINE!$A$22:$A$93,ANTOINE!$B$22:$B$93) -> acetyl-chloride | E16: =LOOKUP(A16,ANTOINE!$A$22:$A$93,ANTOINE!$D$22:$D$93) -> 6.8407 | F16: =LOOKUP($A16,ANTOINE!$A$22:$A$93,ANTOINE!$E$22:$E$93) -> 1062.86 | G16: =LOOKUP($A16,ANTOINE!$A$22:$A$93,ANTOINE!$F$22:$F$93) -> 217.63 | H16: =+F16/(E16-LOG10($B$5))-G16 -> -2.419393515 | I16: =+IF(A16=0,0,POWER(10,$E16-($F16/($B$6+$G16)))) -> 1317.320706 | J16: =+K16*$B$5/I16 -> 0.01817325113 | K16: 0.3
A17: 34 | B17: 0.1 | C17: =IF(A17>0,LOOKUP(A17,ANTOINE!A23:A94,ANTOINE!C23:C94)," ") -> C2CL6 | D17: =IF(A17>0,LOOKUP(A17,ANTOINE!$A$22:$A$93,ANTOINE!$B$22:$B$93)," ") -> hexachloroethane | E17: =IF(A17>0,LOOKUP(A17,ANTOINE!$A$22:$A$93,ANTOINE!$D$22:$D$93)," ") -> 7.08633 | F17: =IF(A17>0,LOOKUP($A17,ANTOINE!$A$22:$A$93,ANTOINE!$E$22:$E$93)," ") -> 1626.945 | G17: =IF(A17>0,LOOKUP($A17,ANTOINE!$A$22:$A$93,ANTOINE!$F$22:$F$93)," ") -> 197.048 | H17: =+IF($B4>=3,F17/(E17-LOG10($B$5))-G17,0) -> 116.7718971 | I17: =+IF($B$4>=3,POWER(10,$E17-($F17/($B$6+$G17))),0) -> 8.875711461 | J17: =+IF($B$4>=3,K17*$B$5/I17,0) -> 0.899082855 | K17: 0.1
C18: =IF(A18>0,LOOKUP(A18,ANTOINE!A24:A94,ANTOINE!C24:C94)," ") ->  | D18: =IF(A18>0,LOOKUP(A18,ANTOINE!$A$22:$A$93,ANTOINE!$B$22:$B$93)," ") ->  | E18: =IF(A18>0,LOOKUP(A18,ANTOINE!$A$22:$A$93,ANTOINE!$D$22:$D$93)," ") ->  | F18: =IF(A18>0,LOOKUP($A18,ANTOINE!$A$22:$A$93,ANTOINE!$E$22:$E$93)," ") ->  | G18: =IF(A18>0,LOOKUP($A18,ANTOINE!$A$22:$A$93,ANTOINE!$F$22:$F$93)," ") ->  | H18: =+IF($B4>=4,F18/(E18-LOG10($B$5))-G18,0) -> 0 | I18: =+IF($B$4>=4,POWER(10,$E18-($F18/($B$6+$G18))),0) -> 0 | J18: =+IF($B$4>=4,K18*$B$5/I18,0) -> 0 | K18: 0
C19: =IF(A19>0,LOOKUP(A19,ANTOINE!A25:A95,ANTOINE!C25:C95)," ") ->  | D19: =IF(A19>0,LOOKUP(A19,ANTOINE!$A$22:$A$93,ANTOINE!$B$22:$B$93)," ") ->  | E19: =IF(A19>0,LOOKUP(A19,ANTOINE!$A$22:$A$93,ANTOINE!$D$22:$D$93)," ") ->  | F19: =IF(A19>0,LOOKUP($A19,ANTOINE!$A$22:$A$93,ANTOINE!$E$22:$E$93)," ") ->  | G19: =IF(A19>0,LOOKUP($A19,ANTOINE!$A$22:$A$93,ANTOINE!$F$22:$F$93)," ") ->  | H19: =+IF($B4>=5,F19/(E19-LOG10($B$5))-G19,0) -> 0 | I19: =+IF($B$4>=5,POWER(10,$E19-($F19/($B$6+$G19))),0) -> 0 | J19: =+IF($B$4>=5,K19*$B$5/I19,0) -> 0 | K19: 0
C20: =IF(A20>0,LOOKUP(A20,ANTOINE!A26:A95,ANTOINE!C26:C95)," ") ->  | D20: =IF(A20>0,LOOKUP(A20,ANTOINE!$A$22:$A$93,ANTOINE!$B$22:$B$93)," ") ->  | E20: =IF(A20>0,LOOKUP(A20,ANTOINE!$A$22:$A$93,ANTOINE!$D$22:$D$93)," ") ->  | F20: =IF(A20>0,LOOKUP($A20,ANTOINE!$A$22:$A$93,ANTOINE!$E$22:$E$93)," ") ->  | G20: =IF(A20>0,LOOKUP($A20,ANTOINE!$A$22:$A$93,ANTOINE!$F$22:$F$93)," ") ->  | H20: =+IF($B4=6,F20/(E20-LOG10($B$5))-G20,0) -> 0 | I20: =+IF($B$4=6,POWER(10,$E20-($F20/($B$6+$G20))),0) -> 0 | J20: =+IF($B$4>=6,K20*$B$5/I20,0) -> 0 | K20: 0
B21: =SUM(B15:B20) -> 1 | J21: =SUM(J15:J20) -> 1.000000002 | K21: =SUM(K15:K20) -> 1
A23: REFERENCIAS BIBLIOGRÁFICAS:
A24: 1 | B24: SMITH, J.M., H.C. VAN NES & M.M. ABBOTT. (2005). Introduction to Chemical Engineering Thermodynamics. Seventh Edition. McGraw Hill. New York.
A25: 2 | B25: POLING, BRUCE; PRAUSNITZ, JOHN; & O`CONNELL, JOHN. (2001). The Properties of Gases and Liquids. Fifth edition. McGraw Hill. New York.

Sheet ANTOINE
A1: CALCULO DE LA PRESION DE VAPOR PARA SUSTANCIAS PURAS
A2: ECUACION DE ANTOINE
A3: REV 18/06/2022
C4: log10 Pvap = A - [B / (T °C + C)] bar
B6: T = | C6: 50 | D6: °C | E6: <---- Ingrese temperatura
B7: No. = | C7: 41 | E7: <---- Ingrese No. de Sustancia
B9: Sustancia = | C9: =LOOKUP($C$7,$A$22:$A$93,$B$22:$B$93) -> trichloroethene | D9: =LOOKUP(C7,A22:A93,C22:C93) -> C2HCL3
C11: A | D11: B | E11: C
B12: Constantes = | C12: =LOOKUP($C$7,$A$22:$A$93,$D$22:$D$93) -> 7.0281 | D12: =LOOKUP($C$7,$A$22:$A$93,$E$22:$E$93) -> 1315.1 | E12: =LOOKUP($C$7,$A$22:$A$93,$F$22:$F$93) -> 230.01
B14: Valor Calculado: | C14: Pvap = | D14: =+IF($C$12=0,"ND",POWER(10,$C$12-($D$12/($C$6+$E$12)))) -> 214.5270309 | E14: bar
B17: BASE DE DATOS
B18: Ref: POLING, BRUCE; PRAUSNITZ, JOHN & O'CONNELL, JOHN.
B19: "The Properties of Gases and Liquids". 5th edition. McGraw Hill. New York. 2001
A21: No. | B21: SUSTANCIA | C21: FORMULA | D21: A | E21: B | F21: C
A22: 1 | B22: carbon-tetrachloride | C22: CCl4 | D22: 6.8941 | E22: 1219.58 | F22: 227.17
A23: 2 | B23: trichlorofluoromethane | C23: CCL3F | D23: 6.8843 | E23: 1043.01 | F23: 236.86
A24: 3 | B24: dichlorodifluoromethane | C24: CCL2F2 | D24: 6.68619 | E24: 782.072 | F24: 235.377
A25: 4 | B25: chlorotrifluoromethane | C25: CClF3 | D25: 6.35109 | E25: 522.061 | F25: 231.677
A26: 5 | B26: carbon-tetrafluoride | C26: CF4 | D26: 6.9723 | E26: 540.5 | F26: 260.1
A27: 6 | B27: carbon-monoxide | C27: CO | D27: 6.2402 | E27: 230.27 | F27: 260.01
A28: 7 | B28: carbon-dioxide | C28: CO2 | D28: 9.8106 | E28: 1347.79 | F28: 273
A29: 8 | B29: carbonyl-sulfide | C29: COS | D29: 6.90723 | E29: 804.48 | F29: 250
A30: 9 | B30: carbon-disulfide | C30: CS2 | D30: 6.9419 | E30: 1168.62 | F30: 241.54
A31: 10 | B31: chloroform | C31: CHCl3 | D31: 6.9371 | E31: 1171.2 | F31: 227
A32: 11 | B32: dichlorofluoromethane | C32: CHCL2F | D32: 6.97575 | E32: 996.267 | F32: 234.172
A33: 12 | B33: chlorodifluoromethane | C33: CHClF2 | D33: 6.7577 | E33: 740.39 | F33: 231.86
A34: 13 | B34: trifluoromethane | C34: CHF3 | D34: 7.0886 | E34: 705.33 | F34: 249.78
A35: 14 | B35: triiodomethane | C35: CHI3 | D35: 6.59598 | E35: 1567.8 | F35: 204
A36: 16 | B36: dichloromethane | C36: CH2Cl2 | D36: 7.0803 | E36: 1138.91 | F36: 231.46
A37: 17 | B37: chlorofluoromethane | C37: CH2CLF | D37: 6.20452 | E37: 740.39 | F37: 231.86
A38: 18 | B38: difluoromethane | C38: CH2F2 | D38: 7.1389 | E38: 821.7 | F38: 244.7
A39: 19 | B39: diiodomethane | C39: CH2I2 | D39: 6.94246 | E39: 1567.8 | F39: 204
A40: 20 | B40: formaldehyde | C40: CH20 | D40: 7.1561 | E40: 957.24 | F40: 243.01
A41: 21 | B41: formic-acid | C41: CH2O2 | D41: 7.3779 | E41: 1563.28 | F41: 247.07
A42: 22 | B42: bromomethane | C42: CH3BR | D42: 6.9597 | E42: 986.59 | F42: 238.33
A43: 23 | B43: chloromethane (Cloruro de metilo) | C43: CH3Cl | D43: 6.9944 | E43: 902.45 | F43: 243.61
A44: 24 | B44: fluoromethane | C44: CH3F | D44: 7.0976 | E44: 740.22 | F44: 253.89
A45: 25 | B45: iodomethane | C45: CH3I | D45: 6.988 | E45: 1146.34 | F45: 236.66
A46: 26 | B46: nitromethane | C46: CH3NO2 | D46: 7.044 | E46: 1291 | F46: 209.01
A47: 28 | B47: Etilbenceno | C47: C8H10 | D47: 6.825719971 | E47: 1417.634851 | F47: 213.729418
A48: 29 | B48: methane | C48: CH4 | D48: 6.69561 | E48: 405.42 | F48: 267.777
A49: 30 | B49: methanol | C49: CH4O | D49: 8.0724 | E49: 1574.99 | F49: 238.87
A50: 31 | B50: methanethiol | C50: CH4S | D50: 7.03163 | E50: 1015.547 | F50: 238.706
A51: 32 | B51: methylamine | C51: CH5N | D51: 7.4969 | E51: 1079.15 | F51: 240.24
A52: 33 | B52: tetrachloroethene | C52: C2CL4 | D52: 7.02 | E52: 1415.49 | F52: 221.01
A53: 34 | B53: hexachloroethane | C53: C2CL6 | D53: 7.08633 | E53: 1626.945 | F53: 197.048
A54: 35 | B54: 112trichlorotrifluoroethane | C54: C2CL3F3 | D54: 6.8803 | E54: 1099.9 | F54: 227.5
A55: 36 | B55: 12dichlorotetrafluoroethane | C55: C2CL2F4 | D55: 6.87084 | E55: 942.336 | F55: 232.632
A56: 37 | B56: chloropentafluoroethane | C56: C2CLF5 | D56: 6.8333 | E56: 802.97 | F56: 242.28
A57: 38 | B57: tetrafluoroethene | C57: C2F4 | D57: 6.8966 | E57: 683.84 | F57: 245.94
A58: 38 | B58: Acetato de Metilo | C58: C3H6O2 | D58: 7.023012085 | E58: 1157.953249 | F58: 221.1691749
A59: 39 | B59: hexafluoroethane | C59: C2F6 | D59: 6.7933 | E59: 657.06 | F59: 246.22
A60: 40 | B60: cyanogen | C60: C2N2 | D60: 6.43629 | E60: 576.579 | F60: 182.308
A61: 41 | B61: trichloroethene | C61: C2HCL3 | D61: 7.0281 | E61: 1315.1 | F61: 230.01
A62: 42 | B62: pentachloroethane | C62: C2HCL5 | D62: 6.74 | E62: 1378 | F62: 197
A63: 43 | B63: trifluoroethene | C63: C2HF3 | D63: 5.68715 | E63: 491.359 | F63: 227.23
A64: 44 | B64: acetylene (ethyne) | C64: C2H2 | D64: 9.1402 | E64: 1232.6 | F64: 280.9
A65: 45 | B65: 1,1-dichloroethene | C65: C2H2CL2 | D65: 6.9722 | E65: 1099.4 | F65: 237.2
A66: 46 | B66: cis-1,2-dichloroethene | C66: C2H2CL2 | D66: 7.0223 | E66: 1205.4 | F66: 230.6
A67: 46 | B67: 1-Propanol | C67: C3H8O | D67: 4.99991 | E67: 1512.94 | F67: 205.807
A68: 47 | B68: trans-1,2-dichloroethene | C68: C2H2CL2 | D68: 6.9651 | E68: 1141.9 | F68: 231.9
A69: 48 | B69: 1,1,2,2-tetrachloroethane | C69: C2H2CL4 | D69: 6.6317 | E69: 1228.1 | F69: 179.9
A70: 49 | B70: 1,1-difluoroethene | C70: C2H2F2 | D70: 6.34918 | E70: 491.359 | F70: 227.239
A71: 49 | B71: 2-Propanol | C71: C3H8O | D71: 5.24268 | E71: 1580.92 | F71: 219.61
A72: 50 | B72: cis-1,2-difluoroethene | C72: C2H2F2 | D72: 5.31401 | E72: 491.359 | F72: 227.23
A73: 51 | B73: trans-1,2-difluoroethene | C73: C2H2F2 | D73: 5.31401 | E73: 491.359 | F73: 227.23
A74: 52 | B74: ketene | C74: C2H2O | D74: 6.9573 | E74: 803.1 | F74: 238.01
A75: 53 | B75: bromoethylene | C75: C2H3BR | D75: 7.24379 | E75: 1219.308 | F75: 264.021
A76: 54 | B76: chloroethene | C76: C2H3CL | D76: 6.4971 | E76: 783.4 | F76: 230.01
A77: 55 | B77: 1,1,2-trichloroethane | C77: C2H3CL3 | D77: 6.9653 | E77: 1351 | F77: 217
A78: 56 | B78: acetyl-chloride | C78: C2H3CLO | D78: 6.8407 | E78: 1062.86 | F78: 217.63
A79: 57 | B79: fluoroethene | C79: C2H3F | D79: 6.33949 | E79: 593.551 | F79: 243.111
A80: 58 | B80: 1,1,1-trifluoroethane | C80: C2H3F3 | D80: 6.9038 | E80: 788.21 | F80: 243.24
A81: 59 | B81: acetonitrile | C81: C2H3N | D81: 7.0735 | E81: 1279.2 | F81: 224.01
A82: 60 | B82: ethylene | C82: C2H4 | D82: 6.74756 | E82: 585 | F82: 255
A83: 61 | B83: 1,2-dibromoethane | C83: C2H4BR2 | D83: 6.72148 | E83: 1280.82 | F83: 201.75
A84: 62 | B84: 1,1-dichloroethane | C84: C2H4CL2 | D84: 6.9853 | E84: 1171.42 | F84: 228.13
A85: 63 | B85: 1,2-dichloroethane | C85: C2H4CL2 | D85: 7.0253 | E85: 1271.25 | F85: 222.94
A86: 64 | B86: 1,1-difluoroethane | C86: C2H4F2 | D86: 7.03 | E86: 910 | F86: 244
A87: 65 | B87: 1,2-diiodoethane | C87: C2H4I2 | D87: 6.98834 | E87: 1647.1 | F87: 201
A88: 66 | B88: ethylene-oxide | C88: C2H4O | D88: 7.2701 | E88: 1115.1 | F88: 244.15
A89: 67 | B89: acetaldehyde | C89: C2H40 | D89: 7.0565 | E89: 1070.6 | F89: 236.01
A90: 68 | B90: acetic-acid | C90: C2H4O2 | D90: 7.2996 | E90: 1479.02 | F90: 216.82
A91: 69 | B91: methyl-formate | C91: C2H4O2 | D91: 7.1704 | E91: 1125.2 | F91: 230.56
A92: 70 | B92: thioacetic-acid | C92: C2H4OS | D92: 7.74889 | E92: 1479.02 | F92: 216.82
A93: 71 | B93: thiacyclopropane | C93: C2H4S | D93: 7.03725 | E93: 1194.37 | F93: 232.42
A94: 72 | B94: bromoethane | C94: C2H5BR | D94: 6.92 | E94: 1090.81 | F94: 231.72
A95: 73 | B95: chloroethane (Cloruro de etilo) | C95: C2H5Cl | D95: 6.94 | E95: 1012.78 | F95: 236.68
A96: 74 | B96: fluoroethane | C96: C2H5F | D96: 6.9785 | E96: 854.21 | F96: 246.16
A97: 75 | B97: iodoethane | C97: C2H5I | D97: 6.959 | E97: 1232 | F97: 229
A98: 76 | B98: ethylenimine | C98: C2H5N | D98: 7.1323 | E98: 1133.7 | F98: 210.01
A99: 77 | B99: nitroethane | C99: C2H5NO2 | D99: 7.58777 | E99: 1671.266 | F99: 241.187
A100: 78 | B100: ethyl-nitrate | C100: C2H5NO3 | D100: 7.1637 | E100: 1338.8 | F100: 224.9
A101: 79 | B101: ethane | C101: C2H6 | D101: 6.83452 | E101: 663.7 | F101: 256.47
A102: 80 | B102: methyl-ether | C102: C2H6O | D102: 7.3164 | E102: 1025.56 | F102: 256.06
A103: 81 | B103: ethyl-alcohol (ethanol) | C103: C2H6O | D103: 8.2133 | E103: 1652.05 | F103: 231.48
A104: 82 | B104: ethylene-glycol | C104: C2H6O2 | D104: 8.7945 | E104: 2615.4 | F104: 244.91
A105: 83 | B105: methyl-sulfide | C105: C2H6S | D105: 6.94879 | E105: 1090.755 | F105: 230.799
A106: 84 | B106: ethanethiol | C106: C2H6S | D106: 6.95206 | E106: 1084.531 | F106: 231.385
A107: 85 | B107: methyl-disulfide | C107: C2H6S2 | D107: 6.97792 | E107: 1346.342 | F107: 218.863
A108: 86 | B108: ethylamine | C108: C2H7N | D108: 7.3862 | E108: 1137.3 | F108: 235.86
A109: 87 | B109: dimethylamine | C109: C2H7N | D109: 7.0639 | E109: 1024.4 | F109: 238.01
A110: 88 | B110: acrylonitrile | C110: C3H3N | D110: 6.9163 | E110: 1208.3 | F110: 222.01
A111: 89 | B111: allene(propadiene) | C111: C3H4 | D111: 5.7137 | E111: 458.06 | F111: 196.07
A112: 90 | B112: propyne(methylacetylene) | C112: C3H4 | D112: 6.78485 | E112: 803.73 | F112: 229.08
A113: 91 | B113: acrylic-acid | C113: C3H4O2 | D113: 7.1926 | E113: 1441.5 | F113: 193.01
A114: 92 | B114: 3-bromo-1-propene | C114: C3H5BR | D114: 7.05187 | E114: 1259.83 | F114: 232.04
A115: 93 | B115: 3-chloro-1-propene | C115: C3H5CL | D115: 6.9388 | E115: 1099.6 | F115: 226.01
A116: 94 | B116: 1,2,3-trichloropropane | C116: C3H5CL3 | D116: 7.0028 | E116: 1484.1 | F116: 204.01
A117: 95 | B117: 3-iodo-1-propene | C117: C3H5I | D117: 6.9693 | E117: 1316.5 | F117: 220
A118: 96 | B118: propionitrile | C118: C3H5N | D118: 6.9301 | E118: 1277.2 | F118: 218.01
A119: 97 | B119: propene (Propileno) | C119: C3H6 | D119: 6.8196 | E119: 785 | F119: 247
A120: 98 | B120: cyclopropane | C120: C3H6 | D120: 6.8879 | E120: 856.01 | F120: 246.51
A121: 99 | B121: 1,2-dibromopropane | C121: C3H6BR2 | D121: 6.89105 | E121: 1419.6 | F121: 212
A122: 100 | B122: 1,2-dichloropropane | C122: C3H6CL2 | D122: 6.9654 | E122: 1296.4 | F122: 221
A123: 101 | B123: 1,3-dichloropropane | C123: C3H6CL2 | D123: 6.97186 | E123: 1376.2 | F123: 216
A124: 102 | B124: 2,2-dichloropropane | C124: C3H6CL2 | D124: 6.9482 | E124: 1201.1 | F124: 226
A125: 103 | B125: 1,2-diiodopropane | C125: C3H6I2 | D125: 6.0765 | E125: 1507.41 | F125: 244.7
A126: 104 | B126: propylene-oxide | C126: C3H6O | D126: 6.6546 | E126: 915.31 | F126: 208.29
A127: 105 | B127: allyl-alcohol | C127: C3H6O | D127: 7.3424 | E127: 1271.7 | F127: 188.01
A128: 106 | B128: propionaldehyde | C128: C3H6O | D128: 7.0493 | E128: 1154.8 | F128: 229.01
A129: 107 | B129: acetone | C129: C3H6O | D129: 7.2316 | E129: 1277.03 | F129: 237.23
A130: 108 | B130: thiacyclobutane | C130: C3H6S | D130: 7.01667 | E130: 1321.331 | F130: 224.513
A131: 109 | B131: 1-bromopropane | C131: C3H7BR | D131: 7.03766 | E131: 1259.836 | F131: 232.042
A132: 110 | B132: 2-bromopropane | C132: C3H7BR | D132: 7.00463 | E132: 1223.475 | F132: 236.508
A133: 111 | B133: 1-chloropropane | C133: C3H7CL | D133: 6.9311 | E133: 1121.12 | F133: 230.21
A134: 112 | B134: 2-chloropropane | C134: C3H7CL | D134: 6.9654 | E134: 1081.6 | F134: 230.01
A135: 113 | B135: 1-fluoropropane | C135: C3H7F | D135: 6.9533 | E135: 965.18 | F135: 239.5
A136: 114 | B136: 2-fluoropropane | C136: C3H7F | D136: 7.07451 | E136: 965.18 | F136: 239.5
A137: 115 | B137: 1-iodopropane | C137: C3H7I | D137: 7.22121 | E137: 1507.41 | F137: 244.701
A138: 116 | B138: 2-iodopropane | C138: C3H7I | D138: 7.0167 | E138: 1340.448 | F138: 234.365
A139: 117 | B139: 1-nitropropane | C139: C3H7NO2 | D139: 7.1146 | E139: 1467.45 | F139: 215.23
A140: 118 | B140: 2-nitropropane | C140: C3H7NO2 | D140: 7.48654 | E140: 1664.036 | F140: 240.995
A141: 119 | B141: propyl-nitrate | C141: C3H7NO3 | D141: 7.73719 | E141: 1721.723 | F141: 245.49
A142: 120 | B142: isopropyl-nitrate | C142: C3H7NO3 | D142: 6.42006 | E142: 1018.568 | F142: 183.528
A143: 121 | B143: propane | C143: C3H8 | D143: 6.80398 | E143: 803.81 | F143: 246.99
A144: 122 | B144: ethyl-methyl-ether | C144: C3H8O | D144: 5.8819 | E144: 504.49 | F144: 160.76
A145: 123 | B145: propyl-alcohol | C145: C3H8O | D145: 7.6192 | E145: 1375.14 | F145: 193.01
A146: 124 | B146: isopropyl-alcohol | C146: C3H8O | D146: 8.1182 | E146: 1580.92 | F146: 219.62
A147: 125 | B147: ethyl-methyl-sulfide | C147: C3H8S | D147: 6.93849 | E147: 1182.562 | F147: 224.784
A148: 126 | B148: 1-propanethiol | C148: C3H8S | D148: 6.92846 | E148: 1183.307 | F148: 224.624
A149: 127 | B149: 2-propanethiol | C149: C3H8S | D149: 6.87734 | E149: 1113.895 | F149: 226.157
A150: 128 | B150: propylamine | C150: C3H9N | D150: 6.9468 | E150: 1108.2 | F150: 224.01
A151: 129 | B151: trimethylamine | C151: C3H9N | D151: 6.9704 | E151: 968.7 | F151: 234.01
A152: 130 | B152: octafluorocyclobutane | C152: C4F8 | D152: 6.8153 | E152: 862.49 | F152: 225.15
A153: 131 | B153: butadiyne(biacetylene) | C153: C4H2 | D153: 5.51917 | E153: 460.684 | F153: 164.594
A154: 132 | B154: 1buten3yne(vinylacetylene) | C154: C4H4 | D154: 6.953 | E154: 957 | F154: 230.01
A155: 133 | B155: furan | C155: C4H4O | D155: 6.9753 | E155: 1060.85 | F155: 227.75
A156: 134 | B156: thiophene | C156: C4H4S | D156: 6.95926 | E156: 1246.02 | F156: 221.35
A157: 135 | B157: 1,2-butadiene | C157: C4H6 | D157: 6.99383 | E157: 1041.117 | F157: 242.274
A158: 136 | B158: 1,3-butadiene | C158: C4H6 | D158: 6.84999 | E158: 930.546 | F158: 238.854
A159: 137 | B159: 1-butyne(ethylacetylene) | C159: C4H6 | D159: 6.98198 | E159: 988.75 | F159: 233.01
A160: 138 | B160: 2-butyne(dimethylacetylene) | C160: C4H6 | D160: 7.07338 | E160: 1101.71 | F160: 235.81
A161: 139 | B161: cyclobutene | C161: C4H6 | D161: 6.95769 | E161: 1009.32 | F161: 244.986
A162: 140 | B162: acetic-anhydride | C162: C4H6O3 | D162: 7.1216 | E162: 1427.77 | F162: 198.05
A163: 141 | B163: butyronitrile | C163: C4H7N | D163: 7.0396 | E163: 1390.7 | F163: 217
A164: 142 | B164: isobutyronitrile | C164: C4H7N | D164: 7.21591 | E164: 1390.7 | F164: 217
A165: 143 | B165: 1-butene | C165: C4H8 | D165: 6.8429 | E165: 926.1 | F165: 240
A166: 144 | B166: 2-butene,cis | C166: C4H8 | D166: 6.86926 | E166: 960.1 | F166: 237
A167: 145 | B167: 2-butene,trans | C167: C4H8 | D167: 6.86952 | E167: 960.8 | F167: 240
A168: 146 | B168: 2-methylpropene (Isobutileno) | C168: C4H8 | D168: 6.84134 | E168: 923.2 | F168: 240
A169: 147 | B169: cyclobutane | C169: C4H8 | D169: 6.9163 | E169: 1024.54 | F169: 241.38
A170: 148 | B170: 1,2-dibromobutane | C170: C4H8BR2 | D170: 7.25696 | E170: 1759.076 | F170: 235.009
A171: 149 | B171: 2,3-dibromobutane | C171: C4H8BR2 | D171: 7.20023 | E171: 1691.481 | F171: 230.223
A172: 150 | B172: 1,2-diiodobutane | C172: C4H8I2 | D172: 6.2433 | E172: 1507.41 | F172: 244.7
A173: 151 | B173: butyraldehyde | C173: C4H8O | D173: 7.0212 | E173: 1233 | F173: 223.01
A174: 152 | B174: 2-butanone (Metil Etil Cetona) | C174: C4H8O | D174: 7.2087 | E174: 1368.21 | F174: 236.51
A175: 153 | B175: p-dioxane | C175: C4H8O2 | D175: 7.0063 | E175: 1288.5 | F175: 211.01
A176: 154 | B176: ethyl-acetate | C176: C4H8O2 | D176: 7.0146 | E176: 1211.9 | F176: 216.01
A177: 155 | B177: thiacyclopentane | C177: C4H8S | D177: 6.9954 | E177: 1401.939 | F177: 219.607
A178: 156 | B178: 1-bromobutane | C178: C4H9BR | D178: 6.92254 | E178: 1298.608 | F178: 219.7
A179: 157 | B179: 2-bromobutane | C179: C4H9BR | D179: 6.82724 | E179: 1229.08 | F179: 220
A180: 158 | B180: 2-bromo-2-methylpropane | C180: C4H9BR | D180: 6.6685 | E180: 1129.7 | F180: 225
A181: 159 | B181: 1-chlorobutane | C181: C4H9CL | D181: 6.9379 | E181: 1227.43 | F181: 224.11
A182: 160 | B182: 2-chlorobutane | C182: C4H9CL | D182: 6.9447 | E182: 1195.8 | F182: 226.01
A183: 161 | B183: 1-chloro-2-methylpropane | C183: C4H9CL | D183: 6.95304 | E183: 1205.079 | F183: 227.046
A184: 162 | B184: 2-chloro-2-methylpropane | C184: C4H9CL | D184: 6.8671 | E184: 1114.9 | F184: 229.01
A185: 163 | B185: 2-iodo-2-methylpropane | C185: C4H9I | D185: 7.2539 | E185: 1507.41 | F185: 244.7
A186: 164 | B186: pyrrolidine | C186: C4H9N | D186: 6.9246 | E186: 1179.99 | F186: 205.26
A187: 165 | B187: 1-nitrobutane | C187: C4H9NO2 | D187: 6.86715 | E187: 1467.45 | F187: 215.23
A188: 166 | B188: 2-nitrobutane | C188: C4H9NO2 | D188: 7.25197 | E188: 1664.03 | F188: 240.99
A189: 167 | B189: butane (n-butano) | C189: C4H10 | D189: 6.80896 | E189: 935.86 | F189: 238.73
A190: 168 | B190: 2-methylpropane (isobutane) | C190: C4H10 | D190: 6.91048 | E190: 946.35 | F190: 246.68
A191: 169 | B191: ethyl-ether (Eter dietílico) | C191: C4H10O | D191: 6.92032 | E191: 1064.07 | F191: 228.8
A192: 170 | B192: methyl-propyl-ether | C192: C4H10O | D192: 6.1186 | E192: 708.69 | F192: 179.9
A193: 171 | B193: methyl-isopropyl-ether | C193: C4H10O | D193: 6.24495 | E193: 708.69 | F193: 179.9
A194: 172 | B194: butyl-alcohol (1-Butanol) | C194: C4H10O | D194: 7.4768 | E194: 1362.39 | F194: 178.73
A195: 173 | B195: sec-butyl-alcohol | C195: C4H10O | D195: 7.4743 | E195: 1314.19 | F195: 186.51
A196: 174 | B196: tert-butyl-alcohol | C196: C4H10O | D196: 7.3199 | E196: 1154.48 | F196: 177.66
A197: 175 | B197: ethylsulfide | C197: C4H10S | D197: 6.92836 | E197: 1257.833 | F197: 218.662
A198: 176 | B198: isopropyl-methyl-sulfide | C198: C4H10S | D198: 6.90196 | E198: 1232.17 | F198: 221.67
A199: 177 | B199: methyl-propyl-sulfide | C199: C4H10S | D199: 6.95545 | E199: 1284.32 | F199: 219.66
A200: 178 | B200: 1-butanethiol | C200: C4H10S | D200: 6.92754 | E200: 1281.018 | F200: 218.1
A201: 179 | B201: 2-butanethiol | C201: C4H10S | D201: 6.88698 | E201: 1229.904 | F201: 222.021
A202: 180 | B202: 2-methyl-1-propanethiol | C202: C4H10S | D202: 6.88746 | E202: 1237.282 | F202: 220.313
A203: 181 | B203: 2-methyl-2-propanethiol | C203: C4H10S | D203: 6.78781 | E203: 1115.565 | F203: 221.314
A204: 182 | B204: ethyl-disulfide | C204: C4H10S2 | D204: 6.97507 | E204: 1485.97 | F204: 208.958
A205: 183 | B205: butylamine | C205: C4H11N | D205: 7.213 | E205: 1308.4 | F205: 224.2
A206: 184 | B206: sec-butylamine | C206: C4H11N | D206: 7.15069 | E206: 1238.3 | F206: 227
A207: 185 | B207: tert-butylamine | C207: C4H11N | D207: 6.78309 | E207: 993.262 | F207: 210.493
... 538 more rows
